Cogmind - Beta 17 @@@ ROGUE MODE // 2026.07.17 @ 18:34:14 Player: osman sinnoks Result: Destroyed by NC-0LA(R) with Subdweller Laser Performance ------------- Evolutions (0) 0 Regions Visited (2) 400 Robots Destroyed (37) 185 Value Destroyed (577) 577 Prototype IDs (18) 360 Alien Tech Used (0) 0 Bonus (0) 0 TOTAL SCORE: 1522 Bonus ------- None Cogmind --------- Core Integrity 0/250 Matter 198/300 Energy 160/160 System Corruption 0% Temperature Cool (6) Movement Rolling (125) Ox3 Location -10/Subcaves Parts ------- > --- POWER (1) -------- Light Nuclear Core (fused) > --- PROPULSION (2) --- Wheel (fused) Cesium-ion Thruster (fused) > --- UTILITY (2) ------ Large Storage Unit Self-contained Transmogrifier > --- WEAPON (2) ------- Enhanced Force Rifle (fused) Long-range Missile Launcher (fused) > --- INVENTORY (15) --- Subdweller Monowheel High-capacity Matter Pod (200) Signal Interpreter Makeshift Light Armor Plating Powered Cannon Subdweller Machine Gun Light Cannon Subdweller Shrapnel Launcher Hammer Peak State ------------ > --- POWER ------------ Light Nuclear Core > --- PROPULSION ------- Wheel Cesium-ion Thruster > --- UTILITY ---------- Large Storage Unit Self-contained Transmogrifier > --- WEAPON ----------- Enhanced Force Rifle Long-range Missile Launcher > --- INVENTORY -------- Subdweller Monowheel High-capacity Matter Pod Signal Interpreter Makeshift Light Armor Plating Powered Cannon Subdweller Machine Gun Light Cannon Subdweller Shrapnel Launcher Hammer [Rating: 31] Favorites ----------- Power Ion Engine Engine Ion Engine Power Core Light Nuclear Core Propulsion Light Treads Treads Light Treads Wheel Wheel Flight Unit Cesium-ion Thruster Utility Small Storage Unit Device Self-contained Transmogrifier Storage Small Storage Unit Weapon Light Cannon Energy Gun Enhanced Force Rifle Ballistic Gun Barrage Gun Ballistic Cannon Light Cannon Launcher Long-range Missile Launcher Impact Weapon Hammer Slashing Weapon Ripper Build | -11 -10 -10 ------- Run | Yrd Mat Sub Slots Evolved . | . . . Power . | . . . Propulsion . | . . . Utility . | . . . Weapon . | . . . Parts Attached 21 | 6 4 11 Power 2 | 1 . 1 Engine 2 | 1 . 1 Core . | . . . Reactor . | . . . Propulsion 4 | 2 . 2 Treads 4 | 2 . 2 Leg . | . . . Wheel . | . . . Hover . | . . . Flight . | . . . Utility 3 | 1 . 2 Device 1 | . . 1 Storage 2 | 1 . 1 Processor . | . . . Hackware . | . . . Protection . | . . . Artifact . | . . . Weapon 12 | 2 4 6 Energy Gun 2 | 2 . . Energy Cannon . | . . . Ballistic Gun 2 | . . 2 Ballistic Cannon 6 | . 4 2 Launcher 1 | . . 1 Special Weapon . | . . . Impact Weapon 1 | . . 1 Slashing Weapon . | . . . Piercing Weapon . | . . . Special Melee Weapon . | . . . Unidentified Prototypes 1 | . . 1 Parts Lost 5 | . . 5 Power 1 | . . 1 Propulsion 2 | . . 2 Utility . | . . . Weapon 2 | . . 2 Highest Loss Streak 2 | . . 2 To Critical Strikes . | . . . Average Backups 7 | 1 6 8 Power . | . 1 . Propulsion 1 | . . 1 Utility 1 | . 1 2 Weapon 3 | . 3 4 Tool/Special . | . . . Unused Backups 9 | . 2 7 Power . | . . . Propulsion 1 | . . 1 Utility 5 | . 2 3 Weapon 3 | . . 3 Tool/Special . | . . . Average Slot Usage (%) 91 | . 84 96 Engine 11 | . 14 10 Core 2 | . . 3 Treads 19 | . 27 14 Wheel 5 | . . 10 Flight 2 | . . 3 Device 4 | . . 7 Storage 16 | . 14 17 Energy Gun 2 | . . 3 Ballistic Gun 3 | . . 6 Ballistic Cannon 15 | . 27 7 Launcher 2 | . . 3 Slashing Weapon 3 | . . 5 Peak Build Rating 31 | 6 6 31 Average Rating 12 | 4 5 18 On Entrance 4 | . 6 6 Avg Prop Armor Cover (%) 4 | . . 4 Naked Turns . | . . . Heaviest Build 38 | 14 16 38 Greatest Support 40 | 40 40 40 Greatest Overweight (x) 3 | . . 3 Average Overweight (x) . | . . 1 Largest Inventory Capacity 15 | 8 8 15 Average Capacity 11 | 7 8 13 Most Carried 10 | 5 8 10 Average Carried 7 | 1 6 9 Final Capacity 15 | 8 8 15 Final Carried 10 | 2 8 10 Transmogrified Parts 12 | . . 12 Integrity Recovered 59 | . . 59 Class Distribution -------------------- 100% | Mutant Dominant Class ---------------- Mutant | -10/Materials Mutant | -10/Subcaves Resources | -11 -10 -10 ----------- Run | Yrd Mat Sub Matter Collected 1301 | 260 652 389 Remotely . | . . . Salvage Created 848 | 144 450 254 Parts 66 | 10 32 24 Haulers Intercepted 2 | . 2 . Recyclers Shooed 3 | . 3 . Parts Field Recycled . | . . . Retrieved Matter . | . . . Parts Self-Destructed 13 | . . 13 Prevented . | . . . Parts Restored . | . . . Kills | -11 -10 -10 ------- Run | Yrd Mat Sub Combat Hostiles Destroyed 24 | . 11 13 Guns 3 | . . 3 Cannons 15 | . 11 4 AOE 5 | . . 5 Classes Destroyed 8 | 2 5 1 Builder 3 | . 3 . Tunneler 2 | 2 . . Hauler 2 | . 2 . Recycler 4 | 1 3 . Watcher 2 | . 2 . Swarmer 16 | . 9 7 Grunt 2 | . 2 . Subdweller 6 | . . 6 Best Kill Streak 7 | 2 7 4 Combat Bots Only 4 | . 4 4 Max Kills in Single Turn 3 | 1 2 3 Gunslinging . | . . . Exploded 3 | . . 3 Melee . | . . . Uniques/NPCs Destroyed . | . . . Combat | -11 -10 -10 -------- Run | Yrd Mat Sub Hostile Shots Fired 126 | . 66 60 Missed 35 | . 13 22 Hits 91 | . 53 38 Projectile 91 | . 53 38 AOE 4 | . . 4 Damage Taken 1343 | . 434 909 Core 255 | . 39 216 Absorbed by Shields . | . . . Regen/Repaired (Parts) 95 | . 95 . Core Remaining (%) 100 | 100 . . Volleys Fired 81 | 8 42 31 Largest 2 | 2 2 2 Hottest 90 | 90 60 70 Shots Fired 153 | 16 84 53 Gun 31 | 16 . 15 Cannon 112 | . 84 28 Launcher 10 | . . 10 Special . | . . . Kinetic 132 | . 84 48 Thermal 8 | 8 . . Explosive 5 | . . 5 Electromagnetic 8 | 8 . . Robot Hit Streak 14 | 7 9 14 Robot Miss Streak 7 | 2 7 2 Penetration Max . | . . . Secondary Targets . | . . . Shots Hit Robots 92 | 10 43 39 Core Hits 41 | 4 19 18 Critical Kills . | . . . Critical Parts Destroyed 1 | . . 1 Critical Strikes 5 | . 3 2 Blast 4 | . 3 1 Smash 1 | . . 1 Melee Attacks 21 | . . 21 Impact 14 | . . 14 Slashing 7 | . . 7 Piercing . | . . . Sneak Attacks . | . . . Combat Hostiles . | . . . Follow-up Attacks . | . . . Damage Inflicted 2313 | 129 946 1238 Guns 388 | 129 . 259 Cannons 1276 | . 860 416 Explosions 600 | . 67 533 Melee 30 | . . 30 Ramming 19 | . 19 . Kinetic 1998 | . 860 1138 Thermal 116 | 49 67 . Explosive 70 | . . 70 Electromagnetic 80 | 80 . . Impact 30 | . . 30 Slashing . | . . . Piercing . | . . . Highest Corruption . | . . . Average Corruption . | . . . Corruption Purged . | . . . Corruption Blocked . | . . . Overload Shots . | . . . Overflow Damage 107 | . 39 68 Projectiles 12 | . 12 . Explosions 80 | . 27 53 Melee 15 | . . 15 Knockbacks 16 | . 14 2 Impact 1 | . . 1 Kinetic 14 | . 13 1 Secondary 1 | . 1 . Self-Inflicted Damage 24 | . . 24 Shots 1 | . . 1 Rammed 7 | . 7 . Targets Rammed 8 | . 8 . Kicked . | . . . Crushed 1 | . 1 . Highest Temperature 112 | 112 12 . Average Temperature 41 | 57 10 . Received Heat Transfer 183 | . 30 153 Siege Activations . | . . . Martial Activations . | . . . Shielding Activations . | . . . Robots Disrupted . | . . . Combat Hostiles . | . . . Robots Corrupted 1 | . . 1 Combat Hostiles 1 | . . 1 Parts Fried 1 | . . 1 Impact Corruptions 1 | . . 1 Robots Melted . | . . . Combat Hostiles . | . . . Parts Melted . | . . . Heat Transferred 198 | 148 50 . Parts Sabotaged . | . . . Parts Stolen . | . . . Parts Stripped . | . . . Power Chain Reactions . | . . . Alert | -11 -10 -10 ------- Run | Yrd Mat Sub Maximum Alert Level . | . . . Low Security (%) 100 | 100 100 . Level 1 . | . . . Level 2 . | . . . Level 3 . | . . . Level 4 . | . . . Level 5 . | . . . High Security . | . . . Max Security . | . . . Peak Influence 147 | 10 147 . Initial . | . . . Average 36 | 1 39 . Influence Increases 617 | 15 407 195 Destroy 0b10 Robot/C 360 | . 220 140 Destroy 0b10 Robot/NC 65 | 15 50 . Destroy Leader 58 | . 48 10 Successful Hack 22 | . 22 . Disable Machine 30 | . 30 . Destroy Structure 22 | . 22 . Lose Combat Pursuer 60 | . 15 45 Influence Decreases 617 | 15 407 195 Time Decay 607 | 15 407 185 Lost Part 10 | . . 10 Squads Dispatched 2 | . 2 . Investigation 1 | . 1 . Extermination . | . . . Reinforcement 1 | . 1 . Assault . | . . . Garrison . | . . . Intercept . | . . . Searches Triggered . | . . . Construction Impeded . | . . . Haulers Reinforced . | . . . Active Scanning Responses . | . . . Cargo Convoy Interrupts . | . . . Stealth | -11 -10 -10 --------- Run | Yrd Mat Sub Distress Signals . | . . . Communications Jammed . | . . . Distress Signals . | . . . Times Spotted 39 | . 19 20 Peak Tracking Total 6 | . 4 6 Tactical Retreats 2 | . 1 1 Traps | -11 -10 -10 ------- Run | Yrd Mat Sub Traps Triggered 5 | . 2 3 Indirectly . | . . . Trap Hack Attempts . | . . . Triggered . | . . . Disarmed . | . . . Reprogrammed . | . . . Reused . | . . . Traps Extracted . | . . . Installed . | . . . Triggered . | . . . Machines | -11 -10 -10 ---------- Run | Yrd Mat Sub Machines Disabled 6 | . 2 4 Max in Single Turn 2 | . 1 2 Machines Repaired . | . . . Machines Dismantled . | . . . Machines Sabotaged . | . . . Overloaded Fab Kills . | . . . Hacking | -11 -10 -10 --------- Run | Yrd Mat Sub Machines Accessed 8 | . 6 2 Terminals 5 | . 5 . Fabricators . | . . . Repair Stations 1 | . 1 . Recycling Units . | . . . Scanalyzers . | . . . Garrison Access . | . . . Total Hacks 29 | . 17 12 Successful 23 | . 11 12 Failed 6 | . 6 . Catastrophic 1 | . 1 . Database Lockouts . | . . . Manual 12 | . 12 . Terminals 15 | . 15 . Fabricators . | . . . Repair Stations 2 | . 2 . Recycling Units . | . . . Scanalyzers . | . . . Garrison Access . | . . . Terminal Hacks 18 | . 6 12 Record 11 | . . 11 Robot Analysis 4 | . 4 . Alert Level 1 | . 1 . Hauler Manifests 1 | . 1 . Proto ID Catalog 1 | . . 1 Fabricator Hacks . | . . . Repair Station Hacks 2 | . 2 . Scan Component 1 | . 1 . Repair 1 | . 1 . Recycling Unit Hacks . | . . . Scanalyzer . | . . . Garrison Access Hacks . | . . . Unauthorized Hacks 3 | . 3 . Terminals 3 | . 3 . Botnet 3 | . 3 . Fabricators . | . . . Repair Stations . | . . . Recycling Units . | . . . Scanalyzers . | . . . Garrison Access . | . . . Data Cores Recovered . | . . . Used . | . . . Hacking Detections 5 | . 5 . Full Trace Events . | . . . Feedback Events . | . . . Feedback Blocked . | . . . Robot Schematics Acquired . | . . . Robots Built . | . . . Authchips . | . . . Time . | . . . Total Robot Build Rating . | . . . Part Schematics Acquired . | . . . Parts Built . | . . . Authchips . | . . . Time . | . . . Total Part Build Rating . | . . . Part Studies Acquired . | . . . Parts Repaired 1 | . 1 . Time 13 | . 13 . Parts Recycled . | . . . Recycled Matter . | . . . Retrieved Matter . | . . . Retrieved Components . | . . . Parts Scanalyzed . | . . . Part Schematics Acquired . | . . . Parts Damaged . | . . . Bothacking | -11 -10 -10 ------------ Run | Yrd Mat Sub Used RIF Installer . | . . . Robots Hacked . | . . . Non-combat . | . . . Combat . | . . . Robot Hacks Applied . | . . . Relay Couplers Released . | . . . Fabnet Peak Effective % . | . . . Robots Rewired . | . . . Allies Hacked . | . . . Hacks Repelled . | . . . Allies | -11 -10 -10 -------- Run | Yrd Mat Sub Total Allies . | . . . Largest Group . | . . . Highest-Rated Group . | . . . Highest-Rated Ally . | . . . Total Orders . | . . . Ally Attacks . | . . . Total Damage . | . . . Kills . | . . . Allies Corrupted . | . . . Allies Melted . | . . . Intel | -11 -10 -10 ------- Run | Yrd Mat Sub Active Infowar (turns) . | . . . Robot Analysis Total 4 | . 4 . Derelict Logs Recovered . | . . . Drone Launches . | . . . Drone Recoveries . | . . . Exploration | -11 -10 -10 ------------- Run | Yrd Mat Sub Turns Passed 3762 | 111 1496 2155 Spaces Moved 2381 | 65 828 1488 Core 27 | 27 . . Treads 1437 | 38 828 571 Legs . | . . . Wheels 917 | . . 917 Hover . | . . . Flight . | . . . Fastest Speed 50 | 50 160 100 Average Speed 140 | 114 160 130 Slowest Speed 240 | 160 160 240 Overloaded Moves . | . . . Propulsion Burnouts . | . . . Robots Hopped . | . . . Potential Cave-ins . | . . . Cave-ins Triggered . | . . . Exploration Rate (%) 58 | 4 96 75 Regions Visited 2 Branch Regions 1 Pre-discovered Areas 2 | . . 2 Known Exits Taken . | . . . Unknown Exits Taken 2 | 1 1 . Scrap Searched 7 | . . 7 Spaces Dug . | . . . Terrain Destroyed 183 | . 20 163 Melee . | . . . Projectile . | . . . AOE 183 | . 20 163 Terrain Rammed . | . . . Walls Destroyed . | . . . Machines Disabled . | . . . Actions | -11 -10 -10 --------- Run | Yrd Mat Sub Total 2604 | 86 912 1606 Wait 54 | . 14 40 Move 2379 | 64 827 1488 Hop . | . . . Pick Up 28 | 8 12 8 Fast Attach 3 | . 1 2 Attach 16 | 6 4 6 Detach . | . . . Swap 6 | . . 6 Drop 8 | . 4 4 Fire 81 | 8 42 31 Melee 21 | . . 21 Ram . | . . . Kick . | . . . Crush 8 | . 8 . Escape Stasis . | . . . Rewire . | . . . Trap . | . . . Miscellaneous . | . . . Route ------- -11/Scrapyard -10/Materials (discovered 6 exits: [*Mat x3] / [*Min x2] / *Sub) -10/Subcaves (discovered 2 exits: [*Mat] / [*Rec]) History --------- Turn | Location | Event 5 | -11/Scrapyard | Discovered new exit (range 16) 112 | -11/Scrapyard | Entered Materials 309 | -10/Materials | Build established: Mutant 369 | -10/Materials | Discovered new exit (range 15) 711 | -10/Materials | Repaired Lgt. Treads 885 | -10/Materials | Discovered new exit (range 10) 941 | -10/Materials | Discovered new exit (range 11) 1184 | -10/Materials | Discovered new exit (range 8) 1403 | -10/Materials | Discovered new exit (range 3) 1486 | -10/Materials | Discovered new exit (range 13) 1608 | -10/Materials | Entered Subcaves 1975 | -10/Subcaves | A swath of the cavern ceiling suddenly collapsed 2236 | -10/Subcaves | Visited Clippyterm 2241 | -10/Subcaves | Learned location of Extension (-4) 2284 | -10/Subcaves | Shifting Twisted Machinery released Battle Rifle 2291 | -10/Subcaves | Discovered new exit (range 9) 2300 | -10/Subcaves | Shifting Twisted Machinery released Sub. Monowheel 2361 | -10/Subcaves | Core integrity fell below 50% 2523 | -10/Subcaves | Learned location of Zion (-7) 2523 | -10/Subcaves | Met a Zionite searching for "candidates" 2657 | -10/Subcaves | Visited 4L-MR0's lab 2667 | -10/Subcaves | Found Prototype Device 2668 | -10/Subcaves | Identified Sfc. Transmogrifier 2681 | -10/Subcaves | Found Powered Cannon 2773 | -10/Subcaves | Shifting Twisted Machinery released Lgt. Humpback 2775 | -10/Subcaves | Shifting Twisted Machinery released Sub. Monowheel 2808 | -10/Subcaves | Shifting Twisted Machinery released Sub. Power Source 2835 | -10/Subcaves | Discovered new exit (range 11) 2838 | -10/Subcaves | Core integrity fell below 20% 3763 | -10/Subcaves | Destroyed by NC-0LA(R) with Subdweller Laser Last Messages --------------- Engine into Cld. Ion Engine. 03060_ Sfc. Transmogrifier converts Ripper into Rocket Array. 03143_ Acquired 28 matter. 03150_ Sfc. Transmogrifier converts Cld. Ion Engine into Lgt. Nuclear Core. 03210_ Sfc. Transmogrifier converts Rocket Array into Power Sword. 03237_ Sfc. Transmogrifier converts Arm. Wheel into Cesium-ion Thruster. 03285_ Sfc. Transmogrifier converts Power Sword into Enh. Force Rifle. 03363_ Sfc. Transmogrifier converts Ripper into Lrn. Missile Launcher. 03416_ Acquired 13 matter. 03760_ F3-A4W(R): "ARGHSUB!" 03761_ F3-A4W(R) destroyed. 03762_ NC-0LA(R): "ARGHSUB!" 03762_ The unstable cave ceiling collapses. 03762_ Sub. Power Source crushed. Map ----- +----------------------------------------------------+ | ???????????????????????????????????????????????# | | ???????????????????????????????????????????????## | | ???????????????????????????????????????????????# | | ???????????????????????????????????????????????# | | ???????????????????????????????????????????????# | | ???????????????????????????????????????????????#" | | ?????????????????????????????????????????????### | | ????????????????????????????????????????????## | | ???????????????????????????????????#####?#### | | ???????????????????????????????????# # ### # | | ???????????????????????????????????## ## | | ???????????????????????????????????# # # ### | | ?????????????????????##?#????????#### ### #? | | ????????????????????## # #??????## ## ##?## ### | | ????????????????????# ?????## #???### ## # | | #####??????????????? [ ##???# # #??????# ## | | # #???????????????? R%# ##### ####???????# # | | # #####???????????? ## #???????????## | | #????????????? #?????????????? | | #????????????? ### #####?????????????? | | #?###??###????? #?###?????????????????? | | ### ### ##???? #?????????????????????? | | # ###### #?????????????????????? | | ## # #?## ## ##?????????????????????? | | ##### ### #### #?????????????????????? | | ?## #### ### # @##?????????????????????? | | ## ## ## ##??????????????????????? | | # # ## ## ##???????????????????????? | | # ### ## %## ####????????????????????????? | | ## # ## ##??????????????????????????? | | ### % # #??????????????????????????? | | ## % ## ##??????????????????????????? | | ## ## ## ###?????????????????????????? | | ## ## ### #?????????????????????????? | | ###### #?????????????????????????? | | ##???# #?????????????????????????? | | #????# #?????????????????????????? | | #????# #?????????????????????????? | | ## #?#### ##?????????????????????????? | | ### ###?# #??????????????????????????? | | ## #???# ##??????????????????????????? | | # ####### ##???????????????????????????? | | #### ##????????????????????????????? | | #????????????????????????????? | | ????????????????????????????? | | ## # ????????????????????????????? | | ## ## #???????????????????????????? | | ## ### #???????????????????????????? | | ## ##?# #???????????????????????????? | | #######??# # ##???????????????????????????? | +----------------------------------------------------+ Best States ------------- Heat Dissipation 25 Energy Generation 14 Energy Capacity 280 Matter Stores 300 Matter Capacity 300 Sight Range 16 Terrain Scan Density 10 Evasion (%) 50 Recoil Reduction 2 Item Schematics ----------------- None Robot Schematics ------------------ None Fabricated ------------ Nothing Repaired ---------- Lgt. Treads | 32% | -10/Materials Studied --------- None Alien Tech Used ----------------- None Achievements -------------- Mistaken Identity root@ Challenges ------------ None Game ------ Seed AlertLaserArchive Manual? 0 Play Time 00:30:54 Cumulative 58.7 hours Start 2026.07.17 @ 11:55:48 End 2026.07.17 @ 18:34:14 Sessions 5 Manual Loads 0 Difficulty Rogue Special Mode None Game No. 110 Rogue 110 Adventurer 0 Explorer 0 Win Type - Total 0 Types 0/0/0/0/0/0/0/0/0/0 Lore% 30 Gallery% 36 Achievement% 31 Wizard Run 0 Options --------- Layout 2 ASCII 0 Keyboard 0 Movement Mouse Keybinds 0 Fullscreen 1 Font 48/Smallcaps Map View 50x44 Zoom Use 0% Tactical HUD 1 Map Filters NONE Filters NONE Steam 1 RUN: 164413a8-2b73-4dad-9f95-6e740b644559